fUSD/lending_fUSD_20241119
["ID","MTS","AMOUNT","RATE_DAILY","PERIOD"]
[342708454,1732055442478,-500.0,0.00054967,120]
[342708455,1732055442486,-500.0,0.00054967,120]
[342708456,1732055442496,-500.0,0.00054967,120]
[342708457,1732055442505,-500.0,0.00054967,120]
[342708458,1732055442514,-500.0,0.00054967,120]
[342708459,1732055442523,-500.0,0.00054967,120]
[342708460,1732055442532,-500.0,0.00054967,120]
[342708461,1732055442541,-500.0,0.00054967,120]
[342708462,1732055442550,-500.0,0.00054967,120]
[342708463,1732055442562,-500.0,0.00054967,120]
[342708464,1732055442571,-500.0,0.00054967,120]
[342708465,1732055442580,-500.0,0.00054967,120]
[342708466,1732055442590,-500.0,0.00054967,120]
[342708467,1732055442599,-500.0,0.00054967,120]
[342708468,1732055442609,-500.0,0.00054967,120]
[342708469,1732055442618,-500.0,0.00054967,120]
[342708470,1732055442627,-280.30676352,0.00054967,120]
[342708471,1732055442636,-500.0,0.00054967,120]
[342708472,1732055442645,-500.0,0.00054967,120]
[342708473,1732055442656,-500.0,0.00054967,120]
[342708474,1732055442670,-500.0,0.00054967,120]
[342708475,1732055442679,-500.0,0.00054967,120]
[342708476,1732055442688,-500.0,0.00054967,120]
[342708477,1732055442697,-500.0,0.00054967,120]
[342708478,1732055442706,-500.0,0.00054967,120]
[342708479,1732055442715,-500.0,0.00054967,120]
[342708480,1732055442724,-500.0,0.00054967,120]
[342708481,1732055442733,-500.0,0.00054967,120]
[342708482,1732055442742,-480.35151339,0.00054967,120]
[342708483,1732055442751,-500.0,0.00054967,120]
[342708484,1732055442760,-500.0,0.00054967,120]
[342708485,1732055442771,-500.0,0.00054967,120]
[342708486,1732055442784,-500.0,0.00054967,120]
[342708487,1732055442793,-500.0,0.00054967,120]
[342708488,1732055442802,-500.0,0.00054967,120]
[342708489,1732055442812,-363.07679672,0.00054967,120]
[342708490,1732055442822,-500.0,0.00054967,120]
[342708491,1732055442831,-500.0,0.00054967,120]
[342708492,1732055442840,-500.0,0.00054967,120]
[342708493,1732055442849,-500.0,0.00054967,120]
[342708494,1732055442858,-500.0,0.00054967,60]
[342708495,1732055442866,-500.0,0.00054967,120]
[342708496,1732055442875,-500.0,0.00054967,120]
[342708497,1732055442884,-500.0,0.00054967,120]
[342708498,1732055442893,-500.0,0.00054967,120]
[342708499,1732055442902,-500.0,0.00054967,120]
[342708500,1732055442911,-500.0,0.00054967,120]
[342708501,1732055442921,-500.0,0.00054967,120]
[342708502,1732055442930,-500.0,0.00054967,120]
[342708503,1732055442940,-498.69858557,0.00054967,120]
[342708504,1732055442950,-500.0,0.00054967,120]
[342708505,1732055442959,-500.0,0.00054967,120]
[342708506,1732055442968,-210.88713657,0.00054967,120]
[342708507,1732055442979,-500.0,0.00054967,120]
[342708508,1732055442989,-500.0,0.00054967,120]
[342708509,1732055442999,-500.0,0.00054967,120]
[342708510,1732055443008,-500.0,0.00054967,120]
[342708511,1732055443017,-500.0,0.00054967,120]
[342708512,1732055443026,-500.0,0.00054967,120]
[342708513,1732055443036,-500.0,0.00054967,120]
[342708514,1732055443045,-500.0,0.00054967,120]
[342708515,1732055443054,-500.0,0.00054967,120]
[342708516,1732055443067,-500.0,0.00054967,120]
[342708517,1732055443076,-500.75335827,0.00054967,120]
[342708518,1732055443085,-500.0,0.00054967,120]
[342708519,1732055443094,-192.75950752,0.00054967,120]
[342708520,1732055443103,-500.0,0.00054967,120]
[342708521,1732055443112,-500.0,0.00054967,120]
[342708522,1732055443122,-500.0,0.00054967,120]
[342708523,1732055443131,-307.92,0.00054967,60]
[342708524,1732055443140,-500.0,0.00054967,120]
[342708525,1732055443149,-500.0,0.00054967,120]
[342708526,1732055443158,-641.71012575,0.00054967,120]
[342708527,1732055443168,-500.0,0.00054967,120]
[342708528,1732055443177,-500.0,0.00054967,120]
[342708529,1732055443186,-587.1402964,0.00054967,120]
[342708530,1732055443195,-500.0,0.00054967,120]
[342708531,1732055443204,-500.0,0.00054967,120]
[342708532,1732055443213,-500.51496028,0.00054967,120]
[342708533,1732055443222,-255.63496237,0.00054967,120]
[342708534,1732055443232,-500.32132954,0.00054967,120]
[342708536,1732055443241,-500.0,0.00054967,120]
[342708537,1732055443250,-500.0,0.00054967,120]
[342708538,1732055443258,-500.0,0.00054967,120]
[342708540,1732055443267,-500.0,0.00054967,120]
[342708541,1732055443276,-405.6,0.00054967,120]
[342708543,1732055443285,-496.75,0.00054967,120]
[342708545,1732055443294,-500.0,0.00054967,120]
[342708547,1732055443303,-500.0,0.00054967,120]
[342708549,1732055443314,-500.0,0.00054967,120]
[342708551,1732055443323,-265.79,0.00054967,120]
[342708552,1732055443331,-500.0,0.00054967,120]
[342708553,1732055443340,-500.0,0.00054967,120]
[342708554,1732055443349,-500.0,0.00054967,120]
[342708555,1732055443357,-500.0,0.00054967,120]
[342708556,1732055443367,-500.0,0.00054967,120]
[342708557,1732055443376,-500.0,0.00054967,120]
[342708559,1732055443386,-500.0,0.00054967,120]
[342708560,1732055443395,-500.0,0.00054967,120]
[342708561,1732055443404,-500.0,0.00054967,120]
[342708562,1732055443413,-500.0,0.00054967,120]
[342708563,1732055443423,-500.0,0.00054967,120]
[342708564,1732055443432,-500.0,0.00054967,120]
[342708565,1732055443441,-500.0,0.00054967,120]
[342708566,1732055443453,-500.0,0.00054967,120]
[342708567,1732055443462,-500.0,0.00054967,120]
[342708568,1732055443471,-500.0,0.00054967,120]
[342708569,1732055443480,-500.0,0.00054967,120]
[342708570,1732055443490,-500.0,0.00054967,120]
[342708571,1732055443499,-500.0,0.00054967,120]
[342708572,1732055443508,-14000.0,0.00055,120]
[342708573,1732055443517,-40000.0,0.00055,120]
[342708574,1732055443527,-250.0,0.00055,120]
[342708575,1732055443536,-250.0,0.00055,120]
[342708576,1732055443546,-250.0,0.00055,120]
[342708577,1732055443555,-250.0,0.00055,120]
[342708578,1732055443567,-250.0,0.00055,120]
[342708579,1732055443577,-250.0,0.00055,120]
[342708580,1732055443586,-250.0,0.00055,120]
[342708581,1732055443596,-250.0,0.00055,120]
[342708582,1732055443605,-250.0,0.00055,120]
[342708583,1732055443614,-250.0,0.00055,120]
[342708584,1732055443624,-250.0,0.00055,120]
[342708585,1732055443633,-250.0,0.00055,120]
[342708586,1732055443642,-162.78,0.00055068,120]
[342708587,1732055443651,-528.35,0.00055068,120]
[342708588,1732055443661,-500.0,0.00055068,120]
[342708589,1732055443670,-378.95,0.00055068,120]
[342708590,1732055443680,-500.0,0.00055068,120]
[342708591,1732055443689,-500.0,0.00055068,120]
[342708592,1732055443698,-500.0,0.00055068,120]
[342708593,1732055443707,-500.0,0.00055068,120]
[342708594,1732055443717,-500.0,0.00055068,120]
[342708595,1732055443726,-500.0,0.00055068,120]
[342708596,1732055443736,-500.0,0.00055068,120]
[342708597,1732055443745,-500.0,0.00055068,120]
[342708598,1732055443754,-500.0,0.00055068,120]
[342708599,1732055443763,-500.0,0.00055068,120]
[342708600,1732055443772,-500.0,0.00055068,120]
[342708601,1732055443782,-500.0,0.00055068,120]
[342708602,1732055443791,-500.0,0.00055068,120]
[342708603,1732055443800,-500.0,0.00055068,120]
[342708604,1732055443809,-500.0,0.00055068,120]
[342708605,1732055443821,-500.0,0.00055068,120]
[342708606,1732055443831,-500.0,0.00055068,120]
[342708607,1732055443839,-500.0,0.00055068,120]
[342708608,1732055443848,-500.0,0.00055068,120]
[342708609,1732055443858,-500.0,0.00055068,120]
[342708610,1732055443867,-272.874,0.00055068,120]
[342708611,1732055443876,-500.0,0.00055068,120]
[342708612,1732055443885,-500.0,0.00055068,120]
[342708613,1732055443895,-500.0,0.00055068,120]
[342708615,1732055443904,-500.0,0.00055068,120]
[342708617,1732055443912,-500.0,0.00055068,120]
[342708619,1732055443922,-500.0,0.00055068,120]
[342708620,1732055443931,-500.0,0.00055068,120]
[342708621,1732055443940,-500.0,0.00055068,120]
[342708622,1732055443949,-502.50486588,0.00055068,120]
[342708623,1732055443958,-500.0,0.00055068,120]
[342708624,1732055443967,-500.0,0.00055068,120]
[342708625,1732055443977,-157.31,0.00055156,120]
[342708626,1732055443986,-500.0,0.00055238,120]
[342708627,1732055443998,-500.0,0.00055238,120]
[342708628,1732055444007,-500.0,0.00055238,120]
[342708629,1732055444016,-500.0,0.00055238,120]
[342708630,1732055444026,-795.44,0.00055238,120]
[342708631,1732055444035,-500.0,0.00055238,120]
[342708632,1732055444045,-500.0,0.00055238,120]
[342708633,1732055444054,-500.0,0.00055238,120]
[342708634,1732055444065,-586.81112984,0.00055238,120]
[342708635,1732055444076,-500.0,0.00055238,120]
[342708636,1732055444086,-500.0,0.00055238,120]
[342708637,1732055444095,-2000.0,0.00055238,120]
[342708638,1732055444104,-500.0,0.00055238,120]
[342708639,1732055444114,-500.0,0.00055238,120]
[342708640,1732055444123,-500.0,0.00055238,120]
[342708641,1732055444133,-500.0,0.00055238,120]
[342708642,1732055444142,-500.0,0.00055238,60]
[342708643,1732055444151,-500.0,0.00055238,120]
[342708644,1732055444159,-500.0,0.00055238,120]
[342708645,1732055444168,-500.0,0.00055238,120]
[342708646,1732055444178,-500.0,0.0005524,30]
[342708647,1732055444188,-500.0,0.0005524,120]
[342708648,1732055444198,-500.0,0.0005524,120]
[342708649,1732055444207,-500.0,0.0005524,120]
[342708650,1732055444216,-500.0,0.0005524,120]
[342708651,1732055444225,-500.0,0.0005524,120]
[342708652,1732055444235,-500.0,0.0005524,120]
[342708653,1732055444244,-500.0,0.0005524,120]
[342708654,1732055444253,-210.53,0.0005524,7]
[342708655,1732055444263,-500.0,0.0005524,120]
[342708656,1732055444272,-500.0,0.0005524,120]
[342708657,1732055444282,-500.0,0.0005524,120]
[342708658,1732055444291,-500.0,0.0005524,120]
[342708659,1732055444300,-500.0,0.0005524,120]
[342708660,1732055444309,-500.0,0.0005524,120]
[342708661,1732055444320,-500.0,0.0005524,120]
[342708662,1732055444329,-500.0,0.0005524,3]
[342708663,1732055444338,-500.0,0.0005524,120]
[342708664,1732055444348,-500.0,0.0005524,120]
[342708665,1732055444356,-500.0,0.0005524,120]
[342708666,1732055444366,-500.0,0.0005524,120]
[342708667,1732055444375,-500.0,0.0005524,120]
[342708668,1732055444384,-500.0,0.0005524,120]
[342708669,1732055444394,-500.0,0.0005524,120]
[342708670,1732055444402,-500.0,0.0005524,120]
[342708671,1732055444412,-500.0,0.0005524,120]
[342708672,1732055444421,-500.0,0.0005524,120]
[342708673,1732055444430,-500.0,0.0005524,120]
[342708674,1732055444439,-500.0,0.0005524,120]
[342708675,1732055444448,-500.0,0.00055241,120]
[342708676,1732055444457,-500.0,0.00055241,120]
[342708677,1732055444467,-500.0,0.00055241,120]
[342708678,1732055444476,-500.0,0.00055241,120]
[342708679,1732055444486,-500.0,0.00055241,120]
[342708680,1732055444495,-500.0,0.00055241,120]
[342708681,1732055444504,-500.0,0.00055241,120]
[342708682,1732055444514,-500.0,0.00055241,120]
[342708683,1732055444522,-500.0,0.00055241,120]
[342708684,1732055444532,-500.0,0.00055241,120]
[342708685,1732055444541,-500.0,0.00055241,120]
[342708686,1732055444549,-500.0,0.00055241,120]
[342708687,1732055444558,-500.0,0.00055241,120]
[342708688,1732055444570,-500.0,0.00055241,120]
[342708689,1732055444579,-500.0,0.00055241,120]
[342708690,1732055444588,-500.0,0.00055241,120]
[342708691,1732055444598,-500.0,0.00055241,120]
[342708692,1732055444607,-262.94,0.00055241,120]
[342708693,1732055444616,-363.19491458,0.00055241,120]
[342708694,1732055444625,-500.0,0.00055241,120]
[342708695,1732055444634,-500.0,0.00055241,120]
[342708696,1732055444643,-500.0,0.00055241,120]
[342708697,1732055444652,-500.0,0.00055241,120]
[342708698,1732055444661,-622.88,0.00055241,120]
[342708699,1732055444671,-500.0,0.00055241,120]
[342708700,1732055444680,-500.0,0.00055241,120]
[342708701,1732055444689,-500.0,0.00055241,120]
[342708702,1732055444698,-500.0,0.00055241,120]
[342708703,1732055444708,-500.0,0.00055241,120]
[342708704,1732055444718,-500.0,0.00055241,120]
[342708705,1732055444727,-500.0,0.00055241,60]
[342708706,1732055444736,-500.0,0.00055241,120]
[342708707,1732055444746,-500.0,0.00055241,120]
[342708708,1732055444755,-500.0,0.00055241,120]
[342708709,1732055444764,-500.0,0.00055241,120]
[342708710,1732055444773,-500.0,0.00055241,120]
[342708711,1732055444782,-500.0,0.00055241,120]
[342708712,1732055444791,-500.0,0.00055241,120]
[342708713,1732055444800,-500.0,0.00055241,120]
[342708714,1732055444810,-500.0,0.00055241,120]
[342708715,1732055444821,-500.0,0.00055241,120]
[342708716,1732055444830,-500.0,0.00055241,120]
[342708717,1732055444839,-500.0,0.00055241,120]
[342708718,1732055444849,-500.0,0.00055241,120]
[342708719,1732055444858,-500.0,0.00055241,120]
[342708720,1732055444867,-500.0,0.00055241,120]
[342708721,1732055444988,-500.0,0.00055241,120]
[342708722,1732055445001,-500.0,0.00055241,120]
[342708723,1732055445012,-500.0,0.00055241,120]
[342708724,1732055445022,-500.0,0.00055241,120]
[342708725,1732055445031,-500.0,0.00055241,120]
[342708726,1732055445041,-500.0,0.00055241,120]
[342708727,1732055445054,-500.0,0.00055241,120]
[342708728,1732055445067,-500.0,0.00055241,120]
[342708729,1732055445076,-500.0,0.00055241,120]
[342708730,1732055445086,-276.56,0.00055241,120]
[342708731,1732055445095,-500.0,0.00055241,120]
[342708732,1732055445104,-500.0,0.00055241,120]
[342708733,1732055445113,-500.0,0.00055241,120]
[342708734,1732055445122,-500.0,0.00055241,120]
[342708735,1732055445131,-500.0,0.00055241,120]
[342708736,1732055445141,-500.0,0.00055241,120]
[342708737,1732055445150,-500.0,0.00055241,120]
[342708738,1732055445159,-500.0,0.00055241,120]
[342708739,1732055445168,-500.0,0.00055342,120]
[342708740,1732055445177,-500.0,0.00055342,120]
[342708741,1732055445186,-500.0,0.00055342,120]
[342708742,1732055445196,-500.0,0.00055342,120]
[342708743,1732055445205,-500.0,0.00055342,120]
[342708744,1732055445214,-500.0,0.00055342,120]
[342708745,1732055445223,-500.0,0.00055342,120]
[342708746,1732055445232,-500.0,0.00055342,120]
[342708747,1732055445241,-500.0,0.00055342,120]
[342708748,1732055445251,-500.0,0.00055342,120]
[342708749,1732055445259,-500.0,0.00055342,120]
[342708750,1732055445268,-500.0,0.00055342,120]
[342708751,1732055445278,-500.0,0.00055342,120]
[342708752,1732055445288,-500.0,0.00055342,120]
[342708753,1732055445297,-500.0,0.00055342,120]
[342708754,1732055445306,-500.0,0.00055342,120]
[342708755,1732055445318,-500.0,0.00055342,120]
[342708756,1732055445327,-500.0,0.00055342,120]
[342708757,1732055445336,-500.0,0.00055342,120]
[342708758,1732055445345,-376.73728778,0.00055342,120]
[342708759,1732055445353,-500.0,0.00055342,120]
[342708760,1732055445363,-1092.0,0.00055389,120]
[342708761,1732055445372,-560.0,0.00055389,120]
[342708762,1732055445381,-1924.0,0.00055389,120]
[342708763,1732055445390,-99998.999999,0.000555,30]
[342708764,1732055445400,-795.44,0.00055512,120]
[342708765,1732055445409,-500.0,0.00055512,120]
[342708766,1732055445418,-500.0,0.00055512,120]
[342708767,1732055445427,-500.0,0.00055512,120]
[342708768,1732055445436,-500.0,0.00055512,120]
[342708769,1732055445445,-500.0,0.00055512,120]
[342708770,1732055445454,-2000.0,0.00055512,120]
[342708771,1732055445463,-500.0,0.00055512,120]
[342708772,1732055445472,-500.0,0.00055512,120]
[342708773,1732055445481,-500.0,0.00055512,120]
[342708774,1732055445490,-500.0,0.00055512,120]
[342708775,1732055445499,-500.0,0.00055512,60]
[342708776,1732055445508,-500.0,0.00055512,120]
[342708777,1732055445518,-500.0,0.00055512,120]
[342708778,1732055445527,-500.0,0.00055512,120]
[342708779,1732055445536,-500.0,0.00055514,120]
[342708780,1732055445546,-500.0,0.00055514,120]
[342708781,1732055445555,-500.0,0.00055514,120]
[342708782,1732055445567,-500.0,0.00055514,3]
[342708783,1732055445576,-500.0,0.00055514,120]
[342708784,1732055445586,-500.0,0.00055514,120]
[342708785,1732055445595,-500.0,0.00055514,120]
[342708786,1732055445604,-500.0,0.00055514,120]
[342708787,1732055445614,-500.0,0.00055514,120]
[342708788,1732055445623,-500.0,0.00055514,120]
[342708789,1732055445631,-525.96482832,0.00055514,120]
[342708790,1732055445640,-342.54,0.00055515,120]
[342708791,1732055445649,-500.0,0.00055515,120]
[342708792,1732055445658,-249.02,0.00055515,120]
[342708793,1732055445667,-517.41686157,0.00055515,120]
[342708794,1732055445676,-500.0,0.00055515,120]
[342708795,1732055445686,-500.0,0.00055515,120]
[342708796,1732055445695,-500.0,0.00055515,120]
[342708797,1732055445703,-500.0,0.00055515,120]
[342708798,1732055445712,-500.0,0.00055515,120]
[342708799,1732055445721,-500.0,0.00055515,120]
[342708800,1732055445731,-500.0,0.00055515,120]
[342708801,1732055445740,-500.0,0.00055515,120]
[342708802,1732055445749,-626.65537595,0.00055515,120]
[342708803,1732055445758,-500.0,0.00055515,120]
[342708804,1732055445767,-400.0,0.000556,30]
[342708805,1732055445776,-6119.0,0.000556,13]
[342708806,1732055445785,-500.0,0.00055616,120]
[342708807,1732055445794,-500.0,0.00055616,120]
[342708808,1732055445803,-151.0,0.00055726,120]
[342708809,1732055445814,-795.44,0.00055786,120]
[342708810,1732055445822,-500.0,0.00055786,60]
[342708811,1732055445831,-500.0,0.00055786,120]
[342708812,1732055445841,-500.0,0.00055788,120]
[342708813,1732055445850,-198.7,0.00055788,120]
[342708814,1732055445858,-382.58,0.00055788,120]
[342708815,1732055445867,-500.0,0.00055788,3]
[342708816,1732055445876,-500.0,0.00055789,120]
[342708817,1732055445885,-500.0,0.00055789,120]
[342708818,1732055445895,-164.98,0.0005589,120]
[342708819,1732055445904,-500.0,0.0005589,120]
[342708820,1732055445913,-795.44,0.0005606,120]
[342708821,1732055445922,-500.0,0.0005606,60]
[342708822,1732055445931,-543.04,0.0005606,120]
[342708823,1732055445940,-500.0,0.00056062,120]
[342708824,1732055445949,-500.0,0.00056062,3]
[342708825,1732055445957,-500.0,0.00056063,120]
[342708826,1732055445967,-358.85152962,0.00056164,120]
[342708827,1732055445976,-1277.0,0.000563,120]
[342708828,1732055445986,-795.44,0.00056334,120]
[342708829,1732055445998,-500.0,0.00056334,60]
[342708830,1732055446007,-500.0,0.00056336,120]
[342708831,1732055446016,-183.0,0.00056336,3]
[342708832,1732055446025,-500.0,0.00056337,120]
[342708833,1732055446034,-11352.49704304,0.0005656,120]
[342708834,1732055446043,-795.44,0.00056608,120]
[342708835,1732055446053,-500.0,0.00056608,60]
[342708836,1732055446064,-500.0,0.0005661,120]
[342708837,1732055446074,-224.48,0.00056611,120]
[342708838,1732055446083,-232.75,0.00056727,2]
[342708839,1732055446092,-795.44,0.00056882,120]
[342708840,1732055446101,-311.71,0.00056882,60]
[342708841,1732055446110,-500.0,0.00056884,120]
[342708842,1732055446119,-795.44,0.00057156,120]
[342708843,1732055446129,-500.0,0.00057158,120]
[342708844,1732055446138,-494.89752313,0.00057234,90]
[342708845,1732055446147,-795.44,0.0005743,120]
[342708846,1732055446156,-500.0,0.00057432,120]
[342708847,1732055446165,-499.999999,0.000575,120]
[342708848,1732055446175,-11557.0,0.000576,120]
[342708849,1732055446184,-795.44,0.00057704,120]
[342708850,1732055446193,-611.26000001,0.00057706,120]
[342708851,1732055446202,-1624.29819621,0.000578,120]
[342708853,1732055446211,-795.44,0.00057978,120]
[342708854,1732055446220,-50000.00000001,0.00058,120]
[342708855,1732055446229,-358.15901856,0.00058,120]
[342708856,1732055446239,-606.18565886,0.00058,120]
[342708857,1732055446248,-224636.67148818,0.00058,120]
[342708858,1732055446257,-1744.50892841,0.0005822,120]
[342708859,1732055446266,-795.44,0.00058252,120]
[342708860,1732055446275,-163.77,0.00058327,120]
[342708861,1732055446284,-795.44,0.00058526,120]
[342708862,1732055446293,-4080.0,0.00058621,117]
[342708863,1732055446303,-795.44,0.000588,120]
[342708864,1732055446313,-800.0,0.00058918,54]
[342708865,1732055446323,-232.75,0.00058991,2]
[342708866,1732055446332,-50000.0,0.00059,120]
[342708867,1732055446341,-1000.0,0.00059,120]
[342708868,1732055446351,-795.44,0.00059074,120]
[342708869,1732055446360,-200.0,0.00059123,120]
[342708870,1732055446369,-157.31,0.00059247,120]
[342708871,1732055446379,-1000.0,0.00059282,120]
[342708872,1732055446388,-795.44,0.00059348,120]
[342708873,1732055446398,-795.44,0.00059622,120]
[342708874,1732055446407,-158.76,0.00059725,120]
[342708875,1732055446417,-163.83839702,0.00059857,15]
[342708876,1732055446425,-1800.0,0.00059876,120]
[342708877,1732055446435,-795.44,0.00059896,120]
[342708878,1732055446444,-3468.54,0.000599,2]
[342708879,1732055446454,-1432.0111,0.000599,30]
[342708880,1732055446462,-50000.0,0.0006,50]
[342708881,1732055446471,-50000.0,0.0006,60]
[342708882,1732055446480,-50000.0,0.0006,120]
[342708883,1732055446489,-2000.0,0.0006,120]
[342708884,1732055446499,-50000.0,0.0006,120]
[342708885,1732055446507,-19517.80836792,0.0006,120]
[342708886,1732055446516,-4895.0,0.0006,105]
[342708887,1732055446525,-795.44,0.0006017,120]
[342708888,1732055446534,-500.0,0.00060298,120]
[342708889,1732055446543,-600.0,0.00060298,120]
[342708890,1732055446552,-500.0,0.00060298,120]
[342708891,1732055446561,-795.44,0.00060444,120]
[342708892,1732055446571,-50000.0,0.000605,120]
[342708893,1732055446580,-600.0,0.00060572,120]
[342708894,1732055446589,-500.0,0.00060572,120]
[342708895,1732055446598,-795.44,0.00060718,120]
[342708896,1732055446608,-500.0,0.00060846,120]
[342708897,1732055446617,-600.0,0.00060846,120]
[342708898,1732055446626,-500.0,0.00060846,120]
[342708899,1732055446636,-42306.1823984,0.0006098,120]
[342708900,1732055446645,-795.44,0.00060992,120]
[342708901,1732055446654,-50000.0,0.00061,51]
[342708902,1732055446663,-50000.0,0.00061,61]
[342708903,1732055446672,-927.0,0.00061,25]
[342708905,1732055446681,-441619.0,0.00061,120]
[342708907,1732055446690,-50000.0,0.00061,120]
[342708908,1732055446699,-2000.0,0.00061,120]
[342708909,1732055446708,-5000.0,0.00061,120]
[342708910,1732055446717,-600.0,0.0006112,120]
[342708911,1732055446726,-168.63,0.00061127,2]
[342708912,1732055446736,-168.63,0.00061188,2]
[342708913,1732055446745,-168.63,0.00061249,2]
[342708914,1732055446755,-232.75,0.00061255,2]
[342708915,1732055446763,-795.56,0.00061266,120]
[342708916,1732055446773,-3000.0,0.0006128,107]
[342708917,1732055446781,-168.63,0.0006131,2]
[342708918,1732055446791,-168.63,0.00061371,2]
[342708919,1732055446800,-9140.31554105,0.0006138,120]
[342708920,1732055446810,-500.0,0.00061394,120]
[342708921,1732055446820,-500.0,0.00061394,120]
[342708922,1732055446829,-600.0,0.00061394,120]
[342708923,1732055446838,-168.63,0.00061432,2]
[342708924,1732055446847,-2000.0,0.000615,120]
[342708925,1732055446855,-600.0,0.00061668,120]
[342708926,1732055446864,-2000.0,0.0006169,14]
[342708927,1732055446873,-4964.09745006,0.00061725,120]
[342708928,1732055446881,-150000.00000001,0.000618,120]
[342708929,1732055446890,-2000.0,0.000618,120]
[342708930,1732055446899,-13183.03831462,0.00061816,120]
[342708931,1732055446907,-19338.493311,0.00061857,120]
[342708932,1732055446916,-5363.08437333,0.00061877,120]
[342708933,1732055446925,-1319.5771291,0.000619,3]
[342708934,1732055446934,-89750.9031,0.000619,120]
[342708935,1732055446943,-7436.5125328,0.000619,3]
[342708936,1732055446952,-1250.9028854,0.000619,3]
[342708937,1732055446961,-724.8107947,0.000619,3]
[342708938,1732055446970,-300.0,0.000619,22]
[342708939,1732055446980,-10000.0,0.000619,120]
[342708940,1732055446990,-128089.74824951,0.00061923,120]
[342708941,1732055447000,-500.0,0.00061942,120]
[342708942,1732055447008,-500.0,0.00061942,120]
[342708943,1732055447018,-600.0,0.00061942,120]
[342708944,1732055447027,-300.0,0.00061989,120]
[342708945,1732055447036,-136884.44859013,0.00061999,30]
[342708946,1732055447045,-50000.0,0.00062,62]
[342708947,1732055447054,-50000.0,0.00062,52]
[342708948,1732055447063,-322190.48527366,0.00062,120]
[342708949,1732055447073,-900.0,0.00062,63]
[342708950,1732055447082,-670317.0,0.00062,120]
[342708951,1732055447092,-500000.0,0.00062,120]
[342708952,1732055447100,-47351.07668812,0.0006212,120]
[342708953,1732055447109,-155.41,0.00062128,120]
[342708954,1732055447118,-500.0,0.0006249,120]
[342708955,1732055447127,-500.0,0.0006249,120]
[342708956,1732055447135,-600.0,0.0006249,120]
[342708957,1732055447144,-152.29,0.00062648,120]
[342708958,1732055447153,-99934.63945267,0.000628,120]
[342708959,1732055447163,-300.0,0.000629,22]
[342708960,1732055447171,-1000.0,0.00062999,120]
[342708961,1732055447180,-50000.0,0.00063,63]
[342708962,1732055447189,-50000.0,0.00063,53]
[342708963,1732055447198,-27783.63131965,0.00063,10]
[342708964,1732055447207,-541240.33611746,0.00063,60]
[342708965,1732055447216,-500000.0,0.00063,120]
[342708966,1732055447226,-151.0,0.00063,120]
[342708967,1732055447235,-500.0,0.00063038,120]